Cogmind - Beta 13 @@@ ROGUE MODE // 2024.04.04 @ 20:46:25 Player: Camoedine Result: Destroyed by Y-45 Defender with Beam Rifle Performance ------------- Evolutions (1) 500 Regions Visited (2) 400 Robots Destroyed (43) 215 Value Destroyed (1174) 1174 Prototype IDs (1) 20 Alien Tech Used (0) 0 Bonus (0) 0 TOTAL SCORE: 2309 Bonus ------- None Cogmind --------- Core Integrity 0/400 Matter 287/300 Energy 100/100 System Corruption 0% Temperature Cool (9) Movement Core (1400) Ox27 Location -9/Materials Parts ------- > --- POWER (1) -------- (None) > --- PROPULSION (4) --- (None) > --- UTILITY (2) ------ Huge Storage Unit Signal Interpreter > --- WEAPON (2) ------- Shotgun > --- INVENTORY (25) --- Light Ion Engine Light Ion Engine Light Nuclear Core Improved Heat Sink Improved Heat Sink Improved Heat Sink Large Storage Unit High-capacity Storage Unit Visual Processing Unit Sensor Array Targeting Computer Beam Rifle Beam Rifle Light Assault Rifle Mini Grenade Launcher Mini Grenade Launcher Mini Grenade Launcher Katana Peak State ------------ > --- POWER ------------ Ion Engine > --- PROPULSION ------- Aluminum Leg Aluminum Leg Aluminum Leg Improved Aluminum Leg > --- UTILITY ---------- Huge Storage Unit Signal Interpreter > --- WEAPON ----------- Particle Gun Improved Medium Laser > --- INVENTORY -------- Ion Engine Light Ion Engine Light Ion Engine Light Nuclear Core Improved Heat Sink Improved Heat Sink Large Storage Unit High-capacity Storage Unit Visual Processing Unit Sensor Array Targeting Computer Medium Laser Light Assault Rifle Shotgun Mini Grenade Launcher Mini Grenade Launcher Katana [Rating: 15] Favorites ----------- Power Ion Engine Engine Ion Engine Power Core Light Nuclear Core Propulsion Aluminum Leg Treads Light Treads Leg Aluminum Leg Utility Signal Interpreter Storage Huge Storage Unit Processor Signal Interpreter Weapon Particle Gun Energy Gun Particle Gun Ballistic Gun Shotgun Slashing Weapon Katana Build | -11 -10 -9 ------- Run | Yrd Mat Mat Slots Evolved 2 | . . 2 Power . | . . . Propulsion 2 | . . 2 Utility . | . . . Weapon . | . . . Parts Attached 32 | 4 6 22 Power 6 | 1 1 4 Engine 5 | 1 1 3 Core 1 | . . 1 Reactor . | . . . Propulsion 10 | 2 . 8 Treads 3 | 2 . 1 Leg 7 | . . 7 Wheel . | . . . Hover . | . . . Flight . | . . . Utility 6 | 1 3 2 Device . | . . . Storage 5 | 1 2 2 Processor 1 | . 1 . Hackware . | . . . Protection . | . . . Artifact . | . . . Weapon 10 | . 2 8 Energy Gun 7 | . 1 6 Energy Cannon . | . . . Ballistic Gun 2 | . 1 1 Ballistic Cannon . | . . . Launcher . | . . . Special Weapon . | . . . Impact Weapon . | . . . Slashing Weapon 1 | . . 1 Piercing Weapon . | . . . Special Melee Weapon . | . . . Unidentified Prototypes 1 | . . 1 Parts Lost 18 | . 1 17 Power 5 | . 1 4 Propulsion 9 | . . 9 Utility . | . . . Weapon 4 | . . 4 Highest Loss Streak 6 | . 1 6 To Critical Strikes . | . . . Average Slot Usage (%) 79 | . 92 75 Engine 11 | . 12 10 Treads 8 | . 28 2 Leg 13 | . . 18 Storage 11 | . 14 11 Processor 10 | . 8 11 Energy Gun 14 | . 14 15 Ballistic Gun 7 | . 14 5 Naked Turns . | . . . Heaviest Build 91 | 8 26 91 Greatest Support 60 | 40 40 60 Greatest Overweight (x) 30 | . . 30 Average Overweight (x) 2 | . . 4 Largest Inventory Capacity 25 | 8 15 25 Average Capacity 21 | 7 14 23 Most Carried 19 | 6 15 19 Average Carried 15 | 3 10 17 Final Capacity 25 | 8 15 25 Final Carried 18 | 6 15 18 Class Distribution -------------------- 71% | Mutant 28% | Scavenger-Mutant Dominant Class ---------------- Mutant | -10/Materials Mutant | -9/Materials Resources | -11 -10 -9 ----------- Run | Yrd Mat Mat Matter Collected 612 | 240 90 282 Remotely . | . . . Salvage Created 1386 | . 294 1092 Parts 76 | . 29 47 Haulers Intercepted . | . . . Recyclers Shooed 1 | . 1 . Parts Field Recycled . | . . . Retrieved Matter . | . . . Parts Self-Destructed . | . . . Prevented . | . . . Kills | -11 -10 -9 ------- Run | Yrd Mat Mat Combat Hostiles Destroyed 33 | . 9 24 Guns 31 | . 9 22 Classes Destroyed 8 | . 3 5 Worker 1 | . . 1 Builder 1 | . . 1 Recycler 1 | . . 1 Watcher 7 | . 3 4 Swarmer 8 | . 5 3 Grunt 19 | . 4 15 Duelist 1 | . . 1 Sentry 5 | . . 5 Best Kill Streak 10 | . 3 10 Combat Bots Only 4 | . 3 4 Max Kills in Single Turn 2 | . 1 2 Gunslinging . | . . . Exploded . | . . . Melee . | . . . Uniques/NPCs Destroyed . | . . . Combat | -11 -10 -9 -------- Run | Yrd Mat Mat Hostile Shots Fired 273 | . 55 218 Missed 68 | . 21 47 Damage Taken 2451 | . 320 2131 Core 424 | . 20 404 Absorbed by Shields . | . . . Core Remaining (%) 96 | 100 92 . Volleys Fired 125 | . 35 90 Largest 2 | . 2 2 Hottest 130 | . 70 130 Shots Fired 227 | . 70 157 Gun 227 | . 70 157 Cannon . | . . . Launcher . | . . . Special . | . . . Kinetic 57 | . 35 22 Thermal 170 | . 35 135 Explosive . | . . . Electromagnetic . | . . . Robot Hit Streak 18 | . 12 18 Robot Miss Streak 5 | . 4 5 Penetration Max . | . . . Secondary Targets 9 | . 2 7 Max Gunslinging Chain 1 | . 1 1 Shots Hit Robots 161 | . 46 115 Core Hits 70 | . 19 51 Critical Kills . | . . . Critical Parts Destroyed . | . . . Critical Strikes 10 | . 2 8 Burn 10 | . 2 8 Melee Attacks . | . . . Impact . | . . . Slashing . | . . . Piercing . | . . . Sneak Attacks . | . . . Combat Hostiles . | . . . Follow-up Attacks . | . . . Damage Inflicted 2193 | . 505 1688 Guns 2189 | . 505 1684 Cannons . | . . . Explosions . | . . . Melee . | . . . Ramming 4 | . . 4 Kinetic 463 | . 197 266 Thermal 1726 | . 308 1418 Explosive . | . . . Electromagnetic . | . . . Impact . | . . . Slashing . | . . . Piercing . | . . . Highest Corruption . | . . . Average Corruption . | . . . Corruption Purged . | . . . Corruption Blocked . | . . . Overload Shots . | . . . Overflow Damage . | . . . Projectiles . | . . . Explosions . | . . . Melee . | . . . Knockbacks . | . . . Impact . | . . . Kinetic . | . . . Secondary . | . . . Self-Inflicted Damage . | . . . Shots . | . . . Rammed . | . . . Targets Rammed 1 | . . 1 Kicked 1 | . . 1 Crushed . | . . . Highest Temperature 432 | . 103 432 Average Temperature 117 | . 35 140 Received Heat Transfer 1047 | . 81 966 Effects 12 | . . 12 Shutdowns 2 | . . 2 Energy Bleed 2 | . . 2 Interference 3 | . . 3 Matter Decay 1 | . . 1 Short Circuit 2 | . . 2 Damage (minor) 1 | . . 1 Damage (major) 1 | . . 1 Siege Activations . | . . . Robots Corrupted . | . . . Combat Hostiles . | . . . Parts Fried . | . . . Impact Corruptions . | . . . Robots Melted 2 | . . 2 Combat Hostiles 2 | . . 2 Parts Melted 20 | . 2 18 Heat Transferred 5328 | . 1073 4255 Parts Sabotaged . | . . . Parts Stolen . | . . . Parts Stripped . | . . . Power Chain Reactions . | . . . Alert | -11 -10 -9 ------- Run | Yrd Mat Mat Peak Influence 299 | . 144 299 Initial 39 | . . 39 Average 110 | . 79 123 Maximum Alert Level 1 | . . 1 Low Security (%) 87 | 100 100 83 Level 1 12 | . . 16 Level 2 . | . . . Level 3 . | . . . Level 4 . | . . . Level 5 . | . . . High Security . | . . . Max Security . | . . . Squads Dispatched 3 | . 1 2 Investigation . | . . . Extermination . | . . . Reinforcement 3 | . 1 2 Assault . | . . . Garrison . | . . . Intercept . | . . . Searches Triggered . | . . . Construction Impeded . | . . . Haulers Reinforced . | . . . Active Scanning Responses . | . . . Cargo Convoy Interrupts . | . . . Stealth | -11 -10 -9 --------- Run | Yrd Mat Mat Distress Signals 3 | . 1 2 Communications Jammed . | . . . Distress Signals . | . . . Times Spotted 57 | . 15 42 Peak Tracking Total 5 | . 5 5 Tactical Retreats . | . . . Traps | -11 -10 -9 ------- Run | Yrd Mat Mat Traps Triggered . | . . . Indirectly . | . . . Trap Hack Attempts . | . . . Triggered . | . . . Disarmed . | . . . Reprogrammed . | . . . Reused . | . . . Traps Extracted . | . . . Installed . | . . . Triggered . | . . . Machines | -11 -10 -9 ---------- Run | Yrd Mat Mat Machines Disabled . | . . . Max in Single Turn . | . . . Machines Repaired . | . . . Machines Dismantled . | . . . Machines Sabotaged . | . . . Overloaded Fab Kills . | . . . Hacking | -11 -10 -9 --------- Run | Yrd Mat Mat Machines Accessed . | . . . Terminals . | . . . Fabricators . | . . . Repair Stations . | . . . Recycling Units . | . . . Scanalyzers . | . . . Garrison Access . | . . . Total Hacks . | . . . Successful . | . . . Failed . | . . . Catastrophic . | . . . Database Lockouts . | . . . Manual . | . . . Terminals . | . . . Fabricators . | . . . Repair Stations . | . . . Recycling Units . | . . . Scanalyzers . | . . . Garrison Access . | . . . Terminal Hacks . | . . . Fabricator Hacks . | . . . Repair Station Hacks . | . . . Recycling Unit Hacks . | . . . Scanalyzer . | . . . Garrison Access Hacks . | . . . Unauthorized Hacks . | . . . Terminals . | . . . Fabricators . | . . . Repair Stations . | . . . Recycling Units . | . . . Scanalyzers . | . . . Garrison Access . | . . . Data Cores Recovered . | . . . Used . | . . . Hacking Detections . | . . . Full Trace Events . | . . . Feedback Events . | . . . Feedback Blocked . | . . . Robot Schematics Acquired . | . . . Robots Built . | . . . Authchips . | . . . Time . | . . . Total Robot Build Rating . | . . . Part Schematics Acquired . | . . . Parts Built . | . . . Authchips . | . . . Time . | . . . Total Part Build Rating . | . . . Parts Repaired . | . . . Time . | . . . Parts Recycled . | . . . Recycled Matter . | . . . Retrieved Matter . | . . . Retrieved Components . | . . . Parts Scanalyzed . | . . . Part Schematics Acquired . | . . . Parts Damaged . | . . . Bothacking | -11 -10 -9 ------------ Run | Yrd Mat Mat Used RIF Installer . | . . . Robots Hacked . | . . . Non-combat . | . . . Combat . | . . . Robot Hacks Applied . | . . . Relay Couplers Released . | . . . Fabnet Peak Effective % . | . . . Robots Rewired . | . . . Allies Hacked . | . . . Hacks Repelled . | . . . Allies | -11 -10 -9 -------- Run | Yrd Mat Mat Total Allies . | . . . Largest Group . | . . . Highest-Rated Group . | . . . Highest-Rated Ally . | . . . Total Orders . | . . . Ally Attacks . | . . . Total Damage . | . . . Kills . | . . . Allies Corrupted . | . . . Allies Melted . | . . . Intel | -11 -10 -9 ------- Run | Yrd Mat Mat Robot Analysis Total . | . . . Derelict Logs Recovered . | . . . Drone Launches . | . . . Drone Recoveries . | . . . Exploration | -11 -10 -9 ------------- Run | Yrd Mat Mat Turns Passed 3119 | 72 738 2309 Spaces Moved 859 | 44 374 441 Core 37 | 10 . 27 Treads 458 | 34 374 50 Legs 364 | . . 364 Wheels . | . . . Hover . | . . . Flight . | . . . Fastest Speed 50 | 50 160 120 Average Speed 293 | 135 160 422 Slowest Speed 1550 | 160 160 1550 Overloaded Moves . | . . . Propulsion Burnouts . | . . . Robots Hopped . | . . . Cave-ins Triggered . | . . . Exploration Rate (%) 35 | 4 56 47 Regions Visited 2 Branch Regions . Pre-discovered Areas . | . . . Known Exits Taken 1 | . 1 . Unknown Exits Taken 1 | 1 . . Scrap Searched . | . . . Spaces Dug . | . . . Terrain Destroyed . | . . . Melee . | . . . Projectile . | . . . AOE . | . . . Terrain Rammed . | . . . Walls Destroyed . | . . . Machines Disabled . | . . . Actions | -11 -10 -9 --------- Run | Yrd Mat Mat Total 1237 | 57 451 729 Wait 168 | . 21 147 Move 857 | 43 373 441 Hop . | . . . Pick Up 46 | 10 14 22 Fast Attach 1 | . . 1 Attach 25 | 4 4 17 Detach . | . . . Swap 6 | . 2 4 Drop 8 | . 2 6 Fire 125 | . 35 90 Melee . | . . . Ram . | . . . Kick 1 | . . 1 Crush . | . . . Escape Stasis . | . . . Rewire . | . . . Trap . | . . . Miscellaneous . | . . . Route ------- -11/Scrapyard -10/Materials (discovered 3 exits: *Mat x2 / *Min) -9/Materials (discovered 2 exits: *Mat / *Sto) History --------- Turn | Location | Event 23 | -11/Scrapyard | Discovered new exit (range 15) 73 | -11/Scrapyard | Entered Materials 303 | -10/Materials | Build established: Mutant 355 | -10/Materials | Discovered new exit (range 16) 387 | -10/Materials | Identified exit to Mines 567 | -10/Materials | Discovered new exit (range 11) 593 | -10/Materials | Identified exit to Materials 721 | -10/Materials | Discovered exit to Materials (range 15) 811 | -10/Materials | Entered another Materials area 811 | -9/Materials | Evolved 2 slots: Propulsion x2 998 | -9/Materials | Lost 3 parts (2n1w) 1336 | -9/Materials | Build established: Scavenger-Mutant 1672 | -9/Materials | Discovered new exit (range 16) 1708 | -9/Materials | Identified exit to Materials 1925 | -9/Materials | Core integrity fell below 50% 1962 | -9/Materials | Lost 6 parts (1p4n1w) 2199 | -9/Materials | Build established: Mutant 2399 | -9/Materials | Discovered new exit (range 10) 2481 | -9/Materials | Identified exit to Storage 3100 | -9/Materials | Core integrity fell below 20% 3120 | -9/Materials | Destroyed by Y-45 Defender with Beam Rifle Last Messages --------------- 02463_ W-16 Scout destroyed. 02466_ K-01 Serf collects debris. 02466_ Acquired 6 matter. 02471_ K-01 Serf collects debris. 02481_ EXIT=IDENTIFIED: STORAGE 02487_ R-06 Scavenger collects Hover Unit. 02511_ Acquired Beam Rifle. 03037_ Critical hit (Burn: +37). 03064_ K-01 Serf cleans the Pressure Siphon. 03065_ Y-45 Defender destroyed. 03065_ K-01 Serf destroyed. 03068_ Acquired 10 matter. 03076_ R-06 Scavenger collects Hvy. Assault Rifle. 03080_ R-06 Scavenger collects Beam Rifle. 03086_ Acquired 4 matter. 03086_ Particle Gun destroyed. 03094_ Ion Engine destroyed. 03095_ Aluminum Leg destroyed. 03104_ R-06 Scavenger collects Sml. Matter Pod. 03118_ Lgt. Nuclear Core destroyed. Map ----- +----------------------------------------------------+ | ##### # ## #???????###########????# #?? | | # # ## #???????# #????# #?? | | # # ## #???????# #????# #?? | | # # ## ######### #????# #?? | | ################# ## # #????# #?? | | ????????????????# ## # #????# #?? | | ????????????????# ##""" # #????# #?? | | ????????????????# ##"R # #????# #?? | | ???????########?# #??"" # [ #????# #?? | | ???????# ?# #???? #####+#####???## ##? | | ???????# # #######+### ####### #? | | ???????# # %% #? | | ???????# """ + > #? | | ???????# """ # #? | | ???????? """ ## ############ ####### #? | | ???????? """ ??#+############# ##############? | | ????????? """ ??# ! # # #???? | | ????????? ???# # # T #???? | | ????????######???# + + #???? | | ?????????????????# " """"" # # #???? | | ?????????????????# """"""""" # # """ """ #???? | | ?????????????????# """ """ ?# #?""" """ ????? | | ?????????????????#############?# #?""" """?????? | | ????????? #########"T"########## #?? ??????? | | ???????? t Y #??###????????? | | ????????? g@ #?????????????? | | ????????????"" """" %######## #?????????????? | | ??????????????? """" #??????# #?????????????? | | ??????????????? """"! #??????# #?????????????? | | ?????????????? % #??????# #?????????????? | | ???????????? #??????# #?????????????? | | ???????????######### #??????# #?????????????? | | ???????????????????### #??????# +?????????????? | | ?????????????????????# #??????# #?????????????? | | ?????????????????????# #??????# #?????????????? | | ?????????????????????# #??????# #?????????????? | | ?????????????????????# ???????# #?????????????? | | ?????????????????????# ???????# #?????????????? | | ?????????????????????# ???????? #?????????????? | | ????????????????????? ???????? #?????????????? | | ????????????????????? ???????? ??????????????? | | ????????????????????? ?????????????????????????? | | ????????????????????? ?????????????????????????? | | ?????????????????????????????????????????????????? | | ?????????????????????????????????????????????????? | | ?????????????????????????????????????????????????? | | ?????????????????????????????????????????????????? | | ?????????????????????????????????????????????????? | | ?????????????????????????????????????????????????? | | ?????????????????????????????????????????????????? | +----------------------------------------------------+ Best States ------------- Heat Dissipation 28 Energy Generation 14 Energy Capacity 250 Matter Stores 300 Matter Capacity 300 Sight Range 16 Terrain Scan Density 10 Evasion (%) 55 Recoil Reduction 3 Item Schematics ----------------- None Robot Schematics ------------------ None Fabricated ------------ Nothing Alien Tech Used ----------------- None Achievements -------------- None Challenges ------------ None Game ------ Seed PhasingAnalysisCompactor Manual? 0 Play Time 00:23:21 Cumulative 5.3 hours Start 2024.04.04 @ 20:13:55 End 2024.04.04 @ 20:46:25 Sessions 1 Manual Loads 0 Difficulty Rogue Special Mode None Game No. 10 Rogue 10 Adventurer 0 Explorer 0 Win Type - Total 0 Types 0/0/0/0/0/0/0/0/0 Lore% 2 Gallery% 9 Achievement% 10 Wizard Run 0 Options --------- Layout 0 ASCII 0 Keyboard 0 Movement Mouse Keybinds 0 Fullscreen 2 Font 24/X11 Map View 76x50 Zoom Use 0% Tactical HUD 1 Map Filters NONE Filters NONE Steam 1 RUN: 0dc3674d-6329-45d9-ad59-acc7eb390ec1